bitfinex/quotes_ETHUSD_20250711
["timestamp","ask_amount","ask_price","bid_price","bid_amount"]
[1752215904288,9.9616,3007.4,3007.3,15.223]
[1752215906452,9.9616,3007.4,3007.3,10.002]
[1752215906614,11.0716,3007.4,3007.3,15.223]
[1752215907446,12.73486,3007.4,3007.3,15.223]
[1752215909121,13.84486,3007.4,3007.3,15.223]
[1752215909456,12.1826,3007.4,3007.3,15.223]
[1752215910221,14.3173,3007.4,3007.3,0.002]
[1752215910421,14.3173,3007.4,3007.3,5.223]
[1752215911671,15.4273,3007.4,3007.3,5.223]
[1752215911962,15.4273,3007.4,3007.3,0.002]
[1752215912171,17.52513,3007.4,3007.3,0.002]
[1752215912334,17.52513,3007.4,3007.3,5.223]
[1752215914036,18.08513,3007.4,3007.3,5.223]
[1752215915249,18.63513,3007.4,3007.3,0.002]
[1752215915448,18.63513,3007.4,3007.3,5.223]
[1752215916060,18.08513,3007.4,3007.3,5.223]
[1752215916228,19.19513,3007.4,3007.3,5.223]
[1752215917054,19.74513,3007.4,3007.3,0.002]
[1752215917261,19.74513,3007.4,3007.3,5.223]
[1752215917464,19.19513,3007.4,3007.3,5.223]
[1752215918562,20.30513,3007.4,3007.3,5.223]
[1752215920629,0.55,3007.1,3006.3,7.97]
[1752215920959,0.21635,3007.0,3006.4,5.22]
[1752215922765,0.21635,3007.0,3006.5,5.221]
[1752215922968,1.6522,3006.9,3006.5,5.221]
[1752215923330,0.1656,3006.5,3006.4,10.0]
[1752215923535,0.1656,3006.5,3006.4,15.221]
[1752215923763,0.1656,3006.5,3006.4,10.0]
[1752215923931,0.1656,3006.5,3006.4,15.221]
[1752215925829,1.2756,3006.5,3006.4,15.221]
[1752215928571,2.3856,3006.5,3006.4,15.221]
[1752215928776,2.62416,3006.5,3006.4,15.221]
[1752215929568,2.62416,3006.5,3006.4,15.223]
[1752215929894,4.67696,3006.5,3006.4,0.002]
[1752215930179,0.55,3006.2,3006.0,0.002]
[1752215930381,0.55,3006.2,3006.1,5.22]
[1752215930737,0.7156,3006.1,3006.0,0.002]
[1752215931069,2.2841,3006.1,3006.0,5.222]
[1752215931377,2.2841,3006.1,3005.4,0.002]
[1752215931378,0.55,3005.8,3005.4,0.002]
[1752215931572,0.55,3005.6,3005.5,5.22]
[1752215932224,2.1086,3005.5,3005.4,0.002]
[1752215932423,1.7242,3005.5,3005.4,5.222]
[1752215933264,2.8342,3005.5,3005.4,5.222]
[1752215933671,1.2756,3005.5,3005.4,5.222]
[1752215935166,1.2756,3005.5,3005.4,15.222]
[1752215935694,2.3856,3005.5,3005.4,15.222]
[1752215938169,3.4956,3005.5,3005.4,15.222]
[1752215939498,3.84516,3005.5,3005.4,15.222]
[1752215940001,3.84516,3005.5,3005.4,5.223]
[1752215940299,5.34756,3005.5,3005.4,5.223]
[1752215940471,6.45756,3005.5,3005.4,5.223]
[1752215942908,7.56756,3005.5,3005.4,5.223]
[1752215943081,8.11756,3005.5,3005.4,5.223]
[1752215943277,8.11756,3005.5,3005.4,0.002]
[1752215943482,8.11756,3005.5,3005.4,5.223]
[1752215944622,6.06516,3005.5,3005.4,5.223]
[1752215945209,7.17516,3005.5,3005.4,5.223]
[1752215945853,6.8256,3005.5,3005.4,5.223]
[1752215946900,6.8256,3005.5,3005.4,15.223]
[1752215947833,7.9356,3005.5,3005.4,15.223]
[1752215948498,7.9356,3005.5,3005.4,16.8116]
[1752215950354,9.0456,3005.5,3005.4,16.8116]
[1752215951638,9.0456,3005.5,3005.4,16.8106]
[1752215951931,9.95016,3005.5,3005.4,16.8106]
[1752215952134,9.95016,3005.5,3005.4,10.002]
[1752215952306,9.95016,3005.5,3005.4,15.222]
[1752215952832,11.06016,3005.5,3005.4,15.222]
[1752215953412,11.06016,3005.5,3005.4,10.002]
[1752215953617,11.06016,3005.5,3005.4,15.221]
[1752215954908,12.58126,3005.5,3005.4,0.002]
[1752215955235,13.69126,3005.5,3005.4,5.221]
[1752215956539,14.24126,3005.5,3005.4,5.221]
[1752215957634,15.35126,3005.5,3005.4,5.221]
[1752215958542,15.35126,3005.5,3005.4,0.002]
[1752215958733,15.35126,3005.5,3005.4,5.221]
[1752215960052,16.46126,3005.5,3005.4,5.221]
[1752215960347,15.91126,3005.5,3005.4,5.221]
[1752215962652,17.02126,3005.5,3005.4,5.221]
[1752215963254,15.50016,3005.5,3005.4,5.221]
[1752215963460,15.50016,3005.5,3005.4,0.002]
[1752215963663,15.50016,3005.5,3005.1,7.975]
[1752215963861,1.550016,3005.4,3005.1,7.975]
[1752215964216,1.5816,3005.3,3005.1,7.975]
[1752215964959,2.6916,3005.3,3005.2,5.219]
[1752215965548,0.1656,3005.2,3005.1,7.975]
[1752215965749,0.1656,3005.2,3005.1,13.193]
[1752215965929,0.6063216,3005.2,3005.1,13.193]
[1752215967252,1.7163216,3005.2,3005.1,13.193]
[1752215969833,2.8263216,3005.2,3005.1,13.193]
[1752215972372,3.9363216,3005.2,3005.1,13.193]
[1752215973976,3.9363216,3005.2,3005.1,13.192]
[1752215974148,5.5117216,3005.2,3005.1,7.975]
[1752215974350,5.5117216,3005.2,3005.1,13.192]
[1752215974754,6.6217216,3005.2,3005.1,13.192]
[1752215976475,5.0463216,3005.2,3005.1,13.192]
[1752215977175,6.1563216,3005.2,3005.1,13.192]
[1752215977753,7.8150216,3005.2,3005.1,13.192]
[1752215977953,7.8150216,3005.2,3005.1,7.975]
[1752215978157,7.8150216,3005.2,3005.1,13.192]
[1752215979669,8.9250216,3005.2,3005.1,13.192]
[1752215981370,8.9250216,3005.2,3005.1,7.975]
[1752215981579,8.9250216,3005.2,3005.1,13.191]
[1752215982249,10.0350216,3005.2,3005.1,7.975]
[1752215982455,10.0350216,3005.2,3005.1,13.191]
[1752215984361,10.5850216,3005.2,3005.1,13.191]
[1752215984698,11.6950216,3005.2,3005.1,5.216]
[1752215985658,11.6950216,3005.2,3005.1,5.215]
[1752215985983,0.55,3005.1,3005.0,0.002]
[1752215986289,3.36970216,3005.1,3005.0,0.002]
[1752215986474,0.55,3004.6,3003.8,0.002]
[1752215986675,0.55,3004.4,3003.8,0.002]
[1752215987074,1.66,3004.4,3003.9,5.215]
[1752215987278,0.55,3004.2,3004.0,5.215]
[1752215987475,0.32136,3004.3,3004.0,5.215]
[1752215988179,0.32136,3004.3,3003.8,0.002]
[1752215988180,0.32136,3004.3,3004.1,5.215]
[1752215989506,0.32136,3004.3,3003.8,0.002]
[1752215989507,0.55,3004.2,3003.8,0.002]
[1752215989669,0.55,3004.2,3003.9,5.215]
[1752215989870,0.198136,3004.1,3003.9,5.215]
[1752215990393,0.198136,3004.1,3003.8,0.002]
[1752215990604,0.198136,3004.1,3003.9,5.215]
[1752215991405,1.589,3004.0,3003.8,0.002]
[1752215991604,2.139,3004.0,3003.9,5.214]
[1752215991897,2.3727136,3004.0,3003.8,0.002]
[1752215992081,3.4827136,3004.0,3003.9,5.215]
[1752215992606,3.4827136,3004.0,3003.8,0.002]
[1752215992805,3.4827136,3004.0,3003.9,5.214]
[1752215994593,4.5927136,3004.0,3003.9,5.214]
[1752215995872,2.4537136,3004.0,3003.9,5.214]
[1752215996271,2.22,3004.0,3003.9,5.214]
[1752215996977,3.33,3004.0,3003.9,5.214]
[1752215998005,3.33,3004.0,3003.8,1.5301]
[1752215998205,0.1664,3003.9,3003.8,0.002]
[1752215998507,0.51604,3003.9,3003.8,5.216]
[1752215999012,0.1664,3003.9,3003.8,5.216]
[1752215999505,1.2764,3003.9,3003.8,5.216]
[1752216000081,1.2764,3003.9,3003.8,5.215]
[1752216002427,2.3864,3003.9,3003.8,5.215]
[1752216004729,3.4964,3003.9,3003.8,5.215]
[1752216006436,3.4964,3003.9,3003.8,5.214]
[1752216006437,4.17904,3003.9,3003.8,5.214]
[1752216007407,5.28904,3003.9,3003.8,5.214]
[1752216007647,5.28904,3003.9,3003.8,0.002]
[1752216007822,5.28904,3003.9,3003.8,7.979]
[1752216009052,5.28904,3003.9,3003.8,13.191]
[1752216009718,6.39904,3003.9,3003.8,13.191]
[1752216010216,8.58554,3003.9,3003.8,18.403]
[1752216010424,8.58554,3003.9,3003.8,18.402]
[1752216012242,9.69554,3003.9,3003.8,18.402]
[1752216015280,10.80554,3003.9,3003.8,18.402]
[1752216015454,9.16904,3003.9,3003.8,18.402]
[1752216016067,8.61904,3003.9,3003.8,18.402]
[1752216017141,8.61904,3003.9,3003.8,18.404]
[1752216017647,9.72904,3003.9,3003.8,18.404]
[1752216018473,9.72904,3003.9,3002.6,11.03605689]
[1752216018474,1.305904,3003.8,3002.6,7.98]
[1752216018774,1.305904,3003.8,3002.8,1.3661]
[1752216018959,1.305904,3003.8,3003.1,1.3661]
[1752216019163,1.305904,3003.8,3003.2,5.209]
[1752216019737,9.56264,3003.9,3003.1,1.3661]
[1752216019942,9.56264,3003.9,3003.2,5.209]
[1752216020142,10.67264,3003.9,3003.2,5.209]
[1752216021244,10.67264,3003.9,3003.3,1.3661]
[1752216021576,10.67264,3003.9,3003.4,5.209]
[1752216022288,9.99,3003.9,3003.4,5.209]
[1752216022446,11.1,3003.9,3003.5,11.3661]
[1752216022647,11.1,3003.9,3003.6,5.209]
[1752216022860,11.1,3003.9,3003.7,7.98]
[1752216023048,11.1,3003.9,3003.8,5.209]
[1752216023696,11.1,3003.9,3003.8,12.23994781]
[1752216023855,11.1,3003.9,3003.8,23.60604781]
[1752216024872,12.21,3003.9,3003.8,23.60604781]
[1752216027313,13.32,3003.9,3003.8,23.60604781]
[1752216027514,13.32,3003.9,3003.8,24.01608969]
[1752216027515,2.38567271,3003.9,3003.8,24.01608969]
[1752216028597,2.38567271,3003.9,3003.8,23.60604781]
[1752216029849,3.49567271,3003.9,3003.8,16.5751]
[1752216029997,3.49567271,3003.9,3003.8,23.60604781]
[1752216032221,4.60567271,3003.9,3003.8,23.60604781]
[1752216033603,4.60567271,3003.9,3003.8,16.5751]
[1752216033944,4.60567271,3003.9,3003.8,23.60604781]
[1752216034900,5.71567271,3003.9,3003.8,23.60604781]
[1752216036552,5.71567271,3003.9,3003.8,23.77244781]
[1752216037457,1.11,3004.3,3003.9,10.55]
[1752216037608,1.11,3004.3,3004.2,8.21424781]
[1752216037812,1.11,3004.3,3004.2,28.62224781]
[1752216039652,0.33134542,3004.3,3004.2,29.17224781]
[1752216039956,1.44134542,3004.3,3004.2,29.33864781]
[1752216040151,1.11,3004.4,3004.3,11.7333]
[1752216040309,9.0466,3005.2,3004.5,0.55]
[1752216040635,9.0466,3005.2,3004.9,18.21424781]
[1752216040836,9.0466,3005.2,3004.9,28.62024781]
[1752216041213,8.881,3005.2,3004.9,28.62024781]
[1752216042233,1.111,3005.0,3004.9,28.62024781]
[1752216042753,1.111,3005.0,3004.9,29.17024781]
[1752216043753,8.881,3005.2,3005.1,1.1833]
[1752216043950,8.881,3005.2,3005.1,19.5633]
[1752216044264,8.881,3005.2,3005.1,29.7289]
[1752216044763,9.991,3005.2,3005.1,29.7289]
[1752216047268,11.101,3005.2,3005.1,29.7289]
[1752216049516,11.101,3005.2,3005.1,29.98372678]
[1752216049859,12.211,3005.2,3005.1,29.98372678]
[1752216052290,13.321,3005.2,3005.1,29.98372678]
[1752216054879,14.431,3005.2,3005.1,29.98372678]
[1752216055797,14.43,3005.5,3005.3,1.1833]
[1752216055995,14.43,3005.5,3005.4,27.59054781]
[1752216056201,14.43,3005.5,3005.4,28.14054781]
[1752216056407,14.43,3005.5,3005.4,29.32384781]
[1752216056607,0.1656,3006.1,3005.5,10.55]
[1752216056810,0.1656,3006.1,3005.9,17.03094781]
[1752216057102,0.1656,3006.1,3005.9,27.42394781]
[1752216057311,1.111,3006.0,3005.9,27.42394781]
[1752216059798,2.221,3006.0,3005.9,27.42394781]
[1752216061999,3.331,3006.0,3005.9,27.42394781]
[1752216062711,3.331,3006.0,3005.9,28.91234781]
[1752216064370,4.441,3006.0,3005.9,28.91234781]
[1752216066768,5.551,3006.0,3005.9,28.91234781]
[1752216067372,5.551,3006.0,3005.9,29.46234781]
[1752216069579,6.661,3006.0,3005.9,29.46234781]
[1752216071822,6.661,3006.0,3005.9,21.8814]
[1752216071983,7.771,3006.0,3005.9,20.5486]
[1752216074420,8.881,3006.0,3005.9,20.5486]
[1752216075619,8.881,3006.0,3005.9,28.5196]
[1752216076622,10.5182,3006.0,3005.9,18.354]
[1752216076780,10.5182,3006.0,3005.9,13.16]
[1752216076781,12.80801023,3006.0,3005.9,13.16]
[1752216076982,12.80801023,3006.0,3005.9,17.971]
[1752216077290,12.80801023,3006.0,3005.9,7.971]
[1752216077509,12.80801023,3006.0,3005.9,13.16]
[1752216077709,12.80801023,3006.0,3005.6,7.972]
[1752216077909,1.6477,3005.7,3005.6,7.972]
[1752216078116,1.6477,3005.7,3005.6,13.161]
[1752216079208,2.7577,3005.7,3005.6,13.161]
[1752216079407,2.6738,3005.7,3005.6,13.161]
[1752216081681,3.7838,3005.7,3005.6,13.161]
[1752216082025,4.36056958,3005.7,3005.6,13.161]
[1752216082329,4.36056958,3005.7,3005.6,13.16]
[1752216083033,4.36056958,3005.7,3005.6,7.972]
[1752216083327,4.36056958,3005.7,3005.6,13.16]
[1752216084429,5.47056958,3005.7,3005.6,13.16]
[1752216086839,6.58056958,3005.7,3005.6,13.16]
[1752216088098,6.58056958,3005.7,3005.6,7.972]
[1752216088303,6.58056958,3005.7,3005.6,13.16]
[1752216088916,6.58056958,3005.7,3005.6,13.159]
[1752216089105,7.69056958,3005.7,3005.6,13.159]
[1752216089304,1.5189,3005.5,3005.0,10.002]
[1752216089500,1.5189,3005.5,3005.2,10.0]
[1752216089813,1.5189,3005.5,3005.3,5.187]
[1752216091593,0.1656,3005.3,3005.0,10.002]
[1752216091793,1.6521,3005.4,3005.1,5.187]
[1752216092028,1.6343,3005.2,3005.1,15.187]
[1752216092620,1.6343,3005.2,3005.1,5.187]
[1752216094223,2.7443,3005.2,3005.1,5.187]
[1752216094397,1.11,3005.2,3005.1,5.187]
[1752216094797,1.11,3005.2,3005.1,7.02076947]
[1752216095002,1.11,3005.2,3005.1,6.98749271]
[1752216095214,1.11,3005.2,3005.1,6.5531]
[1752216096498,2.22,3005.2,3005.1,6.5531]
[1752216097015,2.22,3005.2,3005.1,6.79839996]
[1752216097437,2.22,3005.2,3005.1,5.186]
[1752216099024,3.33,3005.2,3005.1,5.186]
[1752216101100,3.33,3005.2,3005.1,5.185]
[1752216101299,4.44,3005.2,3005.1,5.184]
[1752216102802,4.44,3005.2,3005.0,10.002]
[1752216103003,4.44,3005.2,3005.1,10.0]
[1752216103325,4.44,3005.2,3005.1,15.184]
[1752216103734,5.55,3005.2,3005.1,15.184]
[1752216105905,5.55,3005.2,3005.1,15.183]
[1752216106104,6.66,3005.2,3005.1,15.183]
[1752216108533,7.77,3005.2,3005.1,15.183]
[1752216108703,7.77,3005.2,3005.1,15.614]
[1752216110722,7.77,3005.2,3005.1,15.183]
[1752216110914,8.88,3005.2,3005.1,15.183]
[1752216111302,8.88,3005.2,3005.1,15.614]
[1752216114044,9.99,3005.2,3005.1,15.614]
[1752216115216,10.1556,3005.2,3005.1,15.614]
[1752216115634,9.99,3005.2,3005.1,15.614]
[1752216116146,9.99,3005.2,3005.1,15.85750794]
[1752216116312,11.1,3005.2,3005.1,15.85750794]
[1752216116653,1.639,3005.1,3005.0,0.002]
[1752216116950,1.639,3004.9,3004.2,0.002]
[1752216117125,1.639,3004.9,3004.3,5.179]
[1752216117444,1.5167,3004.7,3004.3,5.179]
[1752216117750,0.66273,3004.6,3004.3,5.179]
[1752216118039,0.4646,3004.5,3004.2,10.002]
[1752216118347,2.0008,3004.4,3004.3,5.179]
[1752216118798,3.1108,3004.4,3004.3,5.179]
[1752216119423,3.1108,3004.4,3004.2,10.002]
[1752216119623,2.977093,3004.4,3004.3,5.179]
[1752216119847,2.977093,3004.4,3004.2,10.002]
[1752216120142,2.977093,3004.4,3004.3,5.179]
[1752216120344,1.440893,3004.4,3004.2,0.002]
[1752216120559,1.531,3004.3,3004.2,0.002]
[1752216120760,1.0146,3004.3,3004.2,5.181]
[1752216120923,2.5834,3004.3,3004.2,5.181]
[1752216121254,3.6934,3004.3,3004.2,5.181]
[1752216121924,3.6934,3004.3,3003.8,0.002]
[1752216121925,0.55,3004.0,3003.8,0.002]
[1752216122138,2.3551,3003.9,3003.8,0.002]
[1752216122328,2.8197,3003.9,3003.8,0.002]
[1752216122527,2.8197,3003.9,3003.8,5.181]
[1752216122842,2.8197,3003.9,3003.8,0.002]
[1752216123044,2.8197,3003.9,3003.8,5.182]
[1752216123347,2.2697,3003.9,3003.8,5.182]
[1752216123552,2.701,3003.9,3003.8,5.182]
[1752216124219,1.11,3003.9,3003.8,15.182]
[1752216126056,2.22,3003.9,3003.8,15.182]
[1752216126751,2.6846,3003.9,3003.8,15.182]
[1752216126959,2.6846,3003.9,3003.8,5.182]
[1752216127269,2.95306,3003.9,3003.8,5.182]
[1752216128654,3.59846,3003.9,3003.8,5.182]
[1752216129342,4.06306,3003.9,3003.8,5.182]
[1752216129544,3.59846,3003.9,3003.8,5.182]
[1752216130936,4.44,3003.9,3003.8,5.182]
[1752216131741,4.44,3003.9,3003.8,5.613]
[1752216132053,4.44,3003.9,3003.8,5.182]
[1752216132638,4.44,3003.9,3003.8,5.613]
[1752216133441,5.55,3003.9,3003.8,5.613]
[1752216134776,5.55,3003.9,3003.8,0.002]
[1752216134976,5.96326729,3003.9,3003.8,15.181]
[1752216135858,6.39136729,3003.9,3003.8,15.181]
[1752216136056,7.50136729,3003.9,3003.8,15.18]
[1752216137158,7.50136729,3003.9,3003.8,0.002]
[1752216137360,9.04316729,3003.9,3003.8,5.18]
[1752216137562,9.04316729,3003.9,3003.8,0.002]
[1752216137951,9.59316729,3003.9,3003.8,0.002]
[1752216138153,9.59316729,3003.9,3003.8,5.18]
[1752216138566,1.6341,3003.8,3003.3,7.976]
[1752216138785,1.5956,3003.5,3003.3,7.976]
[1752216139014,1.5956,3003.2,3003.0,7.979]
[1752216139194,0.4281,3003.1,3003.0,7.979]
[1752216139569,0.4281,3003.1,3003.0,13.157]
[1752216139765,0.4281,3003.1,3003.0,7.979]
[1752216140001,0.63047,3003.1,3003.0,13.157]
[1752216140590,0.20237,3003.1,3003.0,13.157]
[1752216140776,1.07954673,3003.7,3003.0,13.157]
[1752216140777,1.5657,3003.6,3003.0,13.6246]
[1752216141098,1.11,3003.1,3003.0,23.157]
[1752216141601,1.11,3003.1,3003.0,23.6246]
[1752216143471,1.11,3003.1,3003.0,17.979]
[1752216143472,2.22,3003.1,3003.0,17.979]
[1752216143666,2.22,3003.1,3003.0,23.6246]
[1752216145305,2.22,3003.1,3003.0,23.157]
[1752216145867,3.33,3003.1,3003.0,23.157]
[1752216146203,3.33,3003.1,3003.0,23.6246]
[1752216146824,3.33,3003.1,3003.0,24.9884]
[1752216148026,3.33,3003.1,3003.0,19.8104]
[1752216148317,4.44,3003.1,3003.0,19.8104]
[1752216148497,4.44,3003.1,3003.0,24.9874]
[1752216148667,4.44,3003.1,3003.0,23.6236]
[1752216148870,4.44,3003.1,3003.0,18.4466]
[1752216149305,4.44,3003.1,3003.0,23.6236]
[1752216150579,5.55,3003.1,3003.0,17.979]
[1752216150886,5.55,3003.1,3003.0,23.156]
[1752216151203,5.55,3003.1,3003.0,23.6236]
[1752216151708,5.55,3003.1,3003.0,17.979]
[1752216151875,5.55,3003.1,3003.0,23.155]
[1752216152276,5.55,3003.1,3003.0,23.157]
[1752216153183,6.66,3003.1,3003.0,23.157]
[1752216153518,6.66,3003.1,3003.0,17.981]
[1752216153722,6.66,3003.1,3003.0,23.157]
[1752216153943,6.66,3003.1,3003.0,23.6246]
[1752216155228,6.66,3003.1,3003.0,24.9884]
[1752216155628,7.77,3003.1,3003.0,24.9884]
[1752216155989,7.9364,3003.1,3003.0,24.9884]
[1752216157831,9.0464,3003.1,3003.0,24.9884]
[1752216160435,10.1564,3003.1,3003.0,24.9884]
[1752216161099,9.99,3003.1,3003.0,24.9884]
[1752216161295,9.99,3003.1,3003.0,25.5384]
[1752216161520,9.99,3003.1,3003.0,25.7048]
[1752216161748,9.99,3003.1,3003.0,25.1548]
[1752216162421,9.99,3003.1,3003.0,24.9884]
[1752216162618,10.1564,3003.1,3003.0,24.5188]
[1752216162854,11.2664,3003.1,3003.0,24.5188]
[1752216163025,11.2664,3003.1,3003.0,24.9864]
[1752216163355,11.2664,3003.1,3003.0,19.8124]
[1752216163553,11.2664,3003.1,3003.0,24.9864]
[1752216163750,11.2664,3003.1,3003.0,19.8124]
[1752216163921,11.2664,3003.1,3003.0,9.3448]
[1752216164118,12.39304,3003.1,3003.0,7.981]
[1752216164323,12.39304,3003.1,3003.0,13.155]
[1752216164539,12.39304,3003.1,3003.0,7.981]
[1752216164858,12.39304,3003.1,3003.0,13.155]
[1752216165166,13.50304,3003.1,3003.0,13.155]
[1752216165456,13.96044,3003.1,3003.0,13.154]
[1752216166027,13.96044,3003.1,3003.0,7.981]
[1752216166224,13.96044,3003.1,3003.0,13.154]
[1752216166755,13.96044,3003.1,3003.0,7.981]
[1752216167258,14.51044,3003.1,3003.0,13.154]
[1752216167624,15.62044,3003.1,3003.0,13.154]
[1752216169934,14.61304,3003.1,3003.0,13.154]
[1752216170142,15.72304,3003.1,3003.0,13.154]
[1752216170729,15.72304,3003.1,3003.0,7.981]
[1752216170952,15.72304,3003.1,3003.0,13.154]
[1752216172543,16.83304,3003.1,3003.0,13.154]
[1752216173268,17.29044,3003.1,3003.0,13.154]
[1752216173564,17.29044,3003.1,3003.0,7.981]
[1752216173773,17.29044,3003.1,3003.0,13.154]
[1752216174771,16.83304,3003.1,3003.0,13.154]
[1752216175070,17.94404,3003.1,3003.0,13.154]
[1752216176047,18.40144,3003.1,3003.0,13.154]
[1752216176478,18.95144,3003.1,3003.0,7.981]
[1752216176681,18.95144,3003.1,3003.0,13.154]
[1752216176988,18.95144,3003.1,3003.0,13.153]
[1752216177486,20.06144,3003.1,3003.0,13.153]
[1752216178184,19.04404,3003.1,3003.0,13.153]
[1752216179291,17.9174,3003.1,3003.0,13.153]
[1752216179792,19.0274,3003.1,3003.0,13.153]
[1752216181795,19.4848,3003.1,3003.0,7.981]
[1752216182002,20.0348,3003.1,3003.0,13.153]
[1752216182312,21.1448,3003.1,3003.0,13.153]
[1752216182467,23.25928,3003.1,3003.0,13.153]
[1752216183695,22.25188,3003.1,3003.0,13.153]
[1752216183894,20.1374,3003.1,3003.0,13.153]
[1752216184599,21.2474,3003.1,3003.0,13.153]
[1752216185600,22.7903,3003.1,3003.0,13.152]
[1752216187170,23.9003,3003.1,3003.0,13.152]
[1752216187704,24.3577,3003.1,3003.0,13.152]
[1752216187894,26.79347,3003.1,3003.0,13.152]
[1752216189508,27.90347,3003.1,3003.0,13.152]
[1752216191001,27.90347,3003.1,3003.0,13.15]
[1752216191997,29.01347,3003.1,3003.0,13.15]
[1752216192905,29.01347,3003.1,3003.0,7.981]
[1752216193102,29.01347,3003.1,3003.0,13.15]
[1752216193311,29.01347,3003.1,3003.0,7.981]
[1752216193626,29.01347,3003.1,3003.0,13.15]
[1752216194493,30.12347,3003.1,3003.0,13.15]
[1752216194690,30.67347,3003.1,3003.0,7.981]
[1752216194891,30.67347,3003.1,3003.0,13.15]
[1752216196819,31.78347,3003.1,3003.0,7.981]
[1752216197016,31.78347,3003.1,3003.0,13.15]
[1752216198681,31.78347,3003.1,3003.0,7.981]
[1752216198881,31.78347,3003.1,3003.0,13.149]
[1752216199290,32.89347,3003.1,3003.0,13.149]
[1752216200539,32.89347,3003.1,3003.0,5.17]
[1752216201129,30.89317,3003.1,3003.0,5.17]
[1752216201852,32.00317,3003.1,3003.0,5.17]
[1752216202013,29.5674,3003.1,3003.0,5.17]
[1752216202212,28.851,3003.1,3003.0,24.23336792]
[1752216202436,27.7569,3003.1,3003.0,25.3177903]
[1752216202627,27.7569,3003.1,3003.0,28.6417903]
[1752216203320,27.7569,3003.1,3003.0,27.63342472]
[1752216203508,27.7569,3003.1,3003.0,28.17267471]
[1752216204113,28.8669,3003.1,3003.0,27.63342472]
[1752216204351,28.8669,3003.1,3003.0,20.59487239]
[1752216205144,27.67011326,3003.1,3003.0,11.66527239]
[1752216205364,27.67011326,3003.1,3003.0,16.2861]
[1752216206023,27.67011326,3003.1,3003.0,11.1201]
[1752216206235,27.67011326,3003.1,3003.0,16.2861]
[1752216206744,28.78011326,3003.1,3003.0,16.2861]
[1752216208133,28.78011326,3003.1,3003.0,11.1201]
[1752216208338,28.78011326,3003.1,3003.0,15.167]
[1752216208658,29.23011326,3003.1,3003.0,5.167]
[1752216209325,30.34011326,3003.1,3003.0,0.002]
[1752216209530,30.34011326,3003.1,3003.0,5.166]
[1752216210646,29.89011326,3003.1,3003.0,15.166]
[1752216211946,31.00011326,3003.1,3003.0,15.166]
[1752216212146,31.00011326,3003.1,3003.0,10.002]
[1752216212355,31.45011326,3003.1,3003.0,10.002]
[1752216212555,31.45011326,3003.1,3003.0,15.166]
[1752216213251,32.00011326,3003.1,3003.0,15.166]
[1752216213552,35.20012459,3003.1,3003.0,15.166]
[1752216213727,32.00011326,3003.1,3003.0,15.166]
[1752216214267,33.11011326,3003.1,3003.0,15.166]
[1752216215669,32.11011326,3003.1,3003.0,15.166]
[1752216216649,33.22011326,3003.1,3003.0,15.166]
[1752216217160,33.38651326,3003.1,3003.0,15.166]
[1752216219066,34.49651326,3003.1,3003.0,15.166]
[1752216220068,34.33011326,3003.1,3003.0,16.82384999]
[1752216220234,34.33011326,3003.1,3003.0,16.2846]
[1752216220635,34.33011326,3003.1,3003.0,11.1206]
[1752216220970,34.33011326,3003.1,3003.0,16.2826]
[1752216221446,34.33011326,3003.1,3003.0,16.82184999]
[1752216221447,35.44011326,3003.1,3003.0,16.82184999]
[1752216221663,35.44011326,3003.1,3003.0,16.98824999]
[1752216223974,36.55011326,3003.1,3003.0,16.449]
[1752216225081,36.55011326,3003.1,3003.0,11.287]
[1752216225298,36.55011326,3003.1,3003.0,16.2816]
[1752216225589,36.15112883,3003.1,3003.0,16.2816]
[1752216225793,36.15112883,3003.1,3003.0,11.1206]
[1752216225954,36.77142883,3003.1,3003.0,0.002]
[1752216226150,38.50342988,3003.1,3003.0,5.163]
[1752216226355,39.61342988,3003.1,3003.0,5.163]
[1752216227099,40.16342988,3003.1,3003.0,0.002]
[1752216227312,41.73772988,3003.1,3003.0,5.162]
[1752216227467,41.73772988,3003.1,3003.0,0.002]
[1752216227667,41.73772988,3003.1,3003.0,5.163]
[1752216227863,2.1243,3003.0,3002.6,7.982]
[1752216228107,0.55,3002.5,3002.1,7.98]
[1752216228400,3.86459936,3002.9,3002.2,5.16]
[1752216228401,0.55,3002.3,3002.2,5.16]
[1752216228767,1.0039,3002.3,3002.1,7.98]
[1752216228997,3.6882,3002.3,3002.2,5.16]
[1752216230400,0.7164,3002.2,3002.1,7.98]
[1752216230604,0.7164,3002.2,3002.1,13.14]
[1752216230605,1.61076,3002.2,3002.1,13.14]
[1752216231507,2.72076,3002.2,3002.1,13.14]
[1752216231704,2.72076,3002.2,3002.1,7.98]